Cogmind - Beta 16.1 @@@ ROGUE MODE // 2026.04.13 @ 22:00:36 Player: Krysmphoenix Result: Destroyed by G-34 Mercenary with Small Laser Performance ------------- Evolutions (0) 0 Regions Visited (1) 200 Robots Destroyed (11) 55 Value Destroyed (186) 186 Prototype IDs (0) 0 Alien Tech Used (0) 0 Bonus (0) 0 TOTAL SCORE: 441 Bonus ------- None Cogmind --------- Core Integrity 0/250 Matter 299/300 Energy 100/100 System Corruption 0% Temperature Cool (6) Movement Core (50) Location -10/Materials Parts ------- > --- POWER (1) -------- (None) > --- PROPULSION (2) --- (None) > --- UTILITY (2) ------ (None) > --- WEAPON (2) ------- Mace > --- INVENTORY (5) ---- Improved Ion Engine Improved Ion Engine Improved Ion Engine Assault Rifle Light Assault Rifle Peak State ------------ > --- POWER ------------ Ion Engine > --- PROPULSION ------- Light Treads Light Treads > --- UTILITY ---------- Improved Terrain Scanner Tractor Beam > --- WEAPON ----------- Assault Rifle Light Assault Rifle > --- INVENTORY -------- Light Ion Engine Light Assault Rifle [Rating: 9] Favorites ----------- Power Ion Engine Engine Ion Engine Propulsion Light Treads Treads Light Treads Utility Tractor Beam Device Tractor Beam Weapon Light Assault Rifle Ballistic Gun Light Assault Rifle Impact Weapon Mace Build | -11 -10 ------- Run | Yrd Mat Slots Evolved . | . . Power . | . . Propulsion . | . . Utility . | . . Weapon . | . . Parts Attached 11 | 8 3 Power 3 | 2 1 Engine 3 | 2 1 Core . | . . Reactor . | . . Propulsion 2 | 2 . Treads 2 | 2 . Leg . | . . Wheel . | . . Hover . | . . Flight . | . . Utility 3 | 2 1 Device 3 | 2 1 Storage . | . . Processor . | . . Hackware . | . . Protection . | . . Artifact . | . . Weapon 3 | 2 1 Energy Gun . | . . Energy Cannon . | . . Ballistic Gun 2 | 2 . Ballistic Cannon . | . . Launcher . | . . Special Weapon . | . . Impact Weapon 1 | . 1 Slashing Weapon . | . . Piercing Weapon . | . . Special Melee Weapon . | . . Unidentified Prototypes . | . . Parts Lost 6 | . 6 Power 1 | . 1 Propulsion 2 | . 2 Utility 2 | . 2 Weapon 1 | . 1 Highest Loss Streak 5 | . 5 To Critical Strikes . | . . Average Backups 3 | 2 3 Power 1 | . 2 Propulsion . | . . Utility . | . . Weapon 1 | 1 1 Tool/Special . | . . Unused Backups 5 | . 5 Power 4 | . 4 Propulsion . | . . Utility . | . . Weapon 1 | . 1 Tool/Special . | . . Average Slot Usage (%) 90 | . 90 Engine 12 | . 12 Treads 26 | . 26 Device 23 | . 23 Ballistic Gun 25 | . 25 Impact Weapon 2 | . 2 Peak Build Rating 9 | 9 9 Average Rating 7 | 6 7 On Entrance 4 | . 9 Avg Prop Armor Cover (%) . | . . Naked Turns . | . . Heaviest Build 12 | 10 12 Greatest Support 40 | 40 40 Greatest Overweight (x) . | . . Average Overweight (x) . | . . Largest Inventory Capacity 5 | 5 5 Average Capacity 5 | 5 5 Most Carried 5 | 5 5 Average Carried 3 | 2 3 Final Capacity 5 | 5 5 Final Carried 5 | 2 5 Class Distribution -------------------- 100% | Mutant Dominant Class ---------------- Mutant | -10/Materials Resources | -11 -10 ----------- Run | Yrd Mat Matter Collected 408 | 313 95 Remotely 286 | 191 95 Salvage Created 307 | 119 188 Parts 22 | 14 8 Haulers Intercepted . | . . Recyclers Shooed . | . . Parts Field Recycled . | . . Retrieved Matter . | . . Parts Self-Destructed . | . . Prevented . | . . Parts Restored . | . . Kills | -11 -10 ------- Run | Yrd Mat Combat Hostiles Destroyed 6 | . 6 Melee 1 | . 1 Guns 5 | . 5 Classes Destroyed 5 | 3 2 Worker 1 | 1 . Tunneler 3 | 3 . Recycler 1 | 1 . Swarmer 3 | . 3 Grunt 3 | . 3 Best Kill Streak 4 | 4 2 Combat Bots Only 2 | . 2 Max Kills in Single Turn 1 | 1 1 Gunslinging . | . . Exploded . | . . Melee 1 | . 1 Uniques/NPCs Destroyed . | . . Combat | -11 -10 -------- Run | Yrd Mat Hostile Shots Fired 122 | . 122 Missed 42 | . 42 Hits 80 | . 80 Projectile 80 | . 80 Critical Strikes 3 | . 3 Damage Taken 942 | . 942 Core 255 | . 255 Absorbed by Shields . | . . Core Remaining (%) 100 | 100 . Volleys Fired 31 | 15 16 Largest 2 | 2 2 Hottest 40 | 40 40 Shots Fired 62 | 30 32 Gun 62 | 30 32 Cannon . | . . Launcher . | . . Special . | . . Kinetic 62 | 30 32 Thermal . | . . Explosive . | . . Electromagnetic . | . . Robot Hit Streak 7 | 7 5 Robot Miss Streak 2 | 2 2 Penetration Max . | . . Secondary Targets 1 | . 1 Max Gunslinging Chain 1 | . 1 Shots Hit Robots 46 | 18 28 Core Hits 15 | 6 9 Critical Kills . | . . Critical Parts Destroyed 1 | . 1 Critical Strikes 1 | . 1 Smash 1 | . 1 Melee Attacks 12 | . 12 Impact 12 | . 12 Slashing . | . . Piercing . | . . Sneak Attacks . | . . Combat Hostiles . | . . Follow-up Attacks . | . . Damage Inflicted 632 | 186 446 Guns 373 | 186 187 Cannons . | . . Explosions . | . . Melee 259 | . 259 Ramming . | . . Kinetic 373 | 186 187 Thermal . | . . Explosive . | . . Electromagnetic . | . . Impact 259 | . 259 Slashing . | . . Piercing . | . . Highest Corruption . | . . Average Corruption . | . . Corruption Purged . | . . Corruption Blocked . | . . Overload Shots . | . . Overflow Damage 34 | . 34 Projectiles . | . . Explosions . | . . Melee 34 | . 34 Knockbacks 2 | . 2 Impact 2 | . 2 Kinetic . | . . Secondary . | . . Self-Inflicted Damage . | . . Shots . | . . Rammed . | . . Targets Rammed . | . . Kicked . | . . Crushed . | . . Highest Temperature 18 | . 18 Average Temperature 9 | . 9 Received Heat Transfer 504 | . 504 Siege Activations . | . . Martial Activations . | . . Shielding Activations . | . . Robots Disrupted . | . . Combat Hostiles . | . . Robots Corrupted . | . . Combat Hostiles . | . . Parts Fried 1 | . 1 Impact Corruptions 2 | . 2 Robots Melted . | . . Combat Hostiles . | . . Parts Melted . | . . Heat Transferred . | . . Parts Sabotaged . | . . Parts Stolen . | . . Parts Stripped . | . . Power Chain Reactions . | . . Alert | -11 -10 ------- Run | Yrd Mat Maximum Alert Level . | . . Low Security (%) 100 | 100 100 Level 1 . | . . Level 2 . | . . Level 3 . | . . Level 4 . | . . Level 5 . | . . High Security . | . . Max Security . | . . Peak Influence 40 | 5 40 Initial 3 | . 3 Average 11 | 2 16 Influence Increases 175 | 25 150 Destroy 0b10 Robot/C 120 | . 120 Destroy 0b10 Robot/NC 25 | 25 . Destroy Leader 30 | . 30 Influence Decreases 145 | 20 125 Entered New Map 2 | . 2 Time Decay 113 | 20 93 Lost Part 30 | . 30 Squads Dispatched . | . . Investigation . | . . Extermination . | . . Reinforcement . | . . Assault . | . . Garrison . | . . Intercept . | . . Searches Triggered . | . . Construction Impeded . | . . Haulers Reinforced . | . . Active Scanning Responses . | . . Cargo Convoy Interrupts . | . . Stealth | -11 -10 --------- Run | Yrd Mat Distress Signals 1 | . 1 Communications Jammed . | . . Distress Signals . | . . Times Spotted 9 | . 9 Peak Tracking Total 7 | . 7 Tactical Retreats . | . . Traps | -11 -10 ------- Run | Yrd Mat Traps Triggered . | . . Indirectly . | . . Trap Hack Attempts . | . . Triggered . | . . Disarmed . | . . Reprogrammed . | . . Reused . | . . Traps Extracted . | . . Installed . | . . Triggered . | . . Machines | -11 -10 ---------- Run | Yrd Mat Machines Disabled . | . . Max in Single Turn . | . . Machines Repaired . | . . Machines Dismantled . | . . Machines Sabotaged . | . . Overloaded Fab Kills . | . . Hacking | -11 -10 --------- Run | Yrd Mat Machines Accessed . | . . Terminals . | . . Fabricators . | . . Repair Stations . | . . Recycling Units . | . . Scanalyzers . | . . Garrison Access . | . . Total Hacks . | . . Successful . | . . Failed . | . . Catastrophic . | . . Database Lockouts . | . . Manual . | . . Terminals . | . . Fabricators . | . . Repair Stations . | . . Recycling Units . | . . Scanalyzers . | . . Garrison Access . | . . Terminal Hacks . | . . Fabricator Hacks . | . . Repair Station Hacks . | . . Recycling Unit Hacks . | . . Scanalyzer . | . . Garrison Access Hacks . | . . Unauthorized Hacks . | . . Terminals . | . . Fabricators . | . . Repair Stations . | . . Recycling Units . | . . Scanalyzers . | . . Garrison Access . | . . Data Cores Recovered . | . . Used . | . . Hacking Detections . | . . Full Trace Events . | . . Feedback Events . | . . Feedback Blocked . | . . Robot Schematics Acquired . | . . Robots Built . | . . Authchips . | . . Time . | . . Total Robot Build Rating . | . . Part Schematics Acquired . | . . Parts Built . | . . Authchips . | . . Time . | . . Total Part Build Rating . | . . Part Studies Acquired . | . . Parts Repaired . | . . Time . | . . Parts Recycled . | . . Recycled Matter . | . . Retrieved Matter . | . . Retrieved Components . | . . Parts Scanalyzed . | . . Part Schematics Acquired . | . . Parts Damaged . | . . Bothacking | -11 -10 ------------ Run | Yrd Mat Used RIF Installer . | . . Robots Hacked . | . . Non-combat . | . . Combat . | . . Robot Hacks Applied . | . . Relay Couplers Released . | . . Fabnet Peak Effective % . | . . Robots Rewired . | . . Allies Hacked . | . . Hacks Repelled . | . . Allies | -11 -10 -------- Run | Yrd Mat Total Allies . | . . Largest Group . | . . Highest-Rated Group . | . . Highest-Rated Ally . | . . Total Orders . | . . Ally Attacks . | . . Total Damage . | . . Kills . | . . Allies Corrupted . | . . Allies Melted . | . . Intel | -11 -10 ------- Run | Yrd Mat Active Infowar (turns) 126 | 51 75 Terrain 126 | 51 75 Robot Analysis Total . | . . Derelict Logs Recovered . | . . Drone Launches . | . . Drone Recoveries . | . . Exploration | -11 -10 ------------- Run | Yrd Mat Turns Passed 402 | 132 270 Spaces Moved 168 | 55 113 Core 17 | 13 4 Treads 151 | 42 109 Legs . | . . Wheels . | . . Hover . | . . Flight . | . . Fastest Speed 50 | 50 50 Average Speed 148 | 134 156 Slowest Speed 160 | 160 160 Overloaded Moves . | . . Propulsion Burnouts . | . . Robots Hopped . | . . Potential Cave-ins . | . . Cave-ins Triggered . | . . Exploration Rate (%) 13 | 4 23 Regions Visited 1 Branch Regions . Pre-discovered Areas . | . . Known Exits Taken . | . . Unknown Exits Taken 1 | 1 . Scrap Searched . | . . Spaces Dug . | . . Terrain Destroyed . | . . Melee . | . . Projectile . | . . AOE . | . . Terrain Rammed . | . . Walls Destroyed . | . . Machines Disabled . | . . Actions | -11 -10 --------- Run | Yrd Mat Total 244 | 86 158 Wait 3 | . 3 Move 167 | 54 113 Hop . | . . Pick Up 16 | 9 7 Fast Attach . | . . Attach 7 | 7 . Detach . | . . Swap 4 | 1 3 Drop 4 | . 4 Fire 31 | 15 16 Melee 12 | . 12 Ram . | . . Kick . | . . Crush . | . . Escape Stasis . | . . Rewire . | . . Trap . | . . Miscellaneous . | . . Route ------- -11/Scrapyard -10/Materials History --------- Turn | Location | Event 25 | -11/Scrapyard | Discovered new exit (range 15) 133 | -11/Scrapyard | Entered Materials 310 | -10/Materials | Build established: Mutant 387 | -10/Materials | Core integrity fell below 50% 394 | -10/Materials | Core integrity fell below 20% 403 | -10/Materials | Destroyed by G-34 Mercenary with Small Laser Last Messages --------------- 00378_ Imp. Ion Engine destroyed. 00378_ Critical hit (Burn: +37). 00379_ Destroyed Heat Sink. 00379_ G-34 Mercenary system corrupted by crushing effect. 00379_ G-34 Mercenary knocked back. 00380_ Critical hit (Burn: +37). 00382_ Lgt. Treads destroyed. 00386_ G-47 Trooper suffers critical hit (Smash). 00386_ Destroyed Aluminum Leg. 00386_ G-47 Trooper system corrupted by crushing effect. 00386_ G-47 Trooper knocked back. 00388_ Heat Sink destroyed. 00388_ Lgt. Assault Rifle destroyed. 00390_ G-47 Trooper misfires. 00394_ Imp. Heat Sink fried. 00394_ G-47 Trooper destroyed. 00401_ G-34 Mercenary heat damages Aluminum Leg. Map ----- +----------------------------------------------------+ | ?????????????????????????????????????????????????? | | ?????????????????????????????????????????????????? | | ?????????????????????????????????????????????????? | | ?????????????????????????????????????????????????? | | ?????????????????????????????????????????????????? | | ?????????????????????????????????????????????????? | | ?????????????????????????????????????????????????? | | ?????????????????????????????????????????????????? | | ?????????????????????????????????????????????????? | | ###########+########?????????????????????????????? | | #??????? ?????????????????????? | | #??????? !? ??????????????????? | | !! !** #?????? == ""???????????????? | | "" ![ !** #?????? ???????????????? | | "" ![ !** #?????? ????????????????? | | "" #?????? ?????????????????? | | % #?????? ??????????????????? | | == #?????? #???????????????????? | | ????###% #?????? #???????????????????? | | ????#""[ ####### #???????????????????? | | ????#T % r a #???????????????????? | | ????### +???????????????????? | | ??????# #???????????????????? | | ??????# ####???????????????????? | | ??????## ############% g#??????????????????????? | | ???????# ???????????# @#??????????????????????? | | ???????# ???????????# #??????????????????????? | | ???????# ???????????# *#??????????????????????? | | ???????# ???????##### %#?????? ???????????????? | | ???????# ???????# #???#?? ???????????????? | | ???????# ???????# g#########??????????????? | | ???????] ???????#!! # = ^^ ???#??#???????? | | ??????? ????????#!! # ?#????????????? | | ?????? "????????#/ # !! """ #????????????? | | ??????? ????????#// # !! """ #????????????? | | ??????????????????##### + !! """ #????#???????? | | ??????????????????????# # """ #????#???????? | | ??????????????????????# # """ #????????#???? | | ??????????????????????# # #????????????? | | ??????????????????????# ####+#########??#??????? | | ?????????????????????## ##?# # #?????????? | | ??????????????????????# #??# # " #?????????? | | ??????????????????????# #??# # """#?#??#????? | | ?????????????????????## #### # """#????#????? | | ?????????????????#????# !# """#???#?????? | | ??????????????????#???# %+= " #?????????? | | ??????????????????##??# [# """#??????#??? | | ??????????????????????# ###### ""#?????????? | | ??????????????????????# #??#?# """#?????????? | | ??????????????????????# #????# " #?????????? | +----------------------------------------------------+ Best States ------------- Heat Dissipation 35 Energy Generation 12 Energy Capacity 265 Matter Stores 300 Matter Capacity 300 Sight Range 16 Terrain Scan Range 16 Terrain Scan Density 10 Evasion (%) 50 Recoil Reduction 2 Item Schematics ----------------- None Robot Schematics ------------------ None Fabricated ------------ Nothing Repaired ---------- Nothing Studied --------- None Alien Tech Used ----------------- None Achievements -------------- None Challenges ------------ None Game ------ Seed StasisThunderBlaster Manual? 0 Play Time 00:06:40 Cumulative 20.6 hours Start 2026.04.13 @ 21:55:04 End 2026.04.13 @ 22:00:36 Sessions 1 Manual Loads 0 Difficulty Rogue Special Mode None Game No. 39 Rogue 36 Adventurer 3 Explorer 0 Win Type - Total 1 Types 1/0/0/0/0/0/0/0/0/0 Lore% 23 Gallery% 21 Achievement% 22 Wizard Run 0 Options --------- Layout 1 ASCII 0 Keyboard 0 Movement Numpad Keybinds 0 Fullscreen 2 Font 24/Proggy Map View 50x35 Zoom Use 0% Tactical HUD 1 Map Filters NONE Filters NONE Steam 1 RUN: ceffd915-6f52-4efa-8568-2892119d9e5b